fUSD/lending_fUSD_20260622
["ID","MTS","AMOUNT","RATE_DAILY","PERIOD"]
[426023979,1782119483000,-4107.37,0.00027671,2]
[426023988,1782119483000,-500.0,0.00027671,2]
[426023978,1782119483000,-500.0,0.00027671,2]
[426023981,1782119483000,-636.06,0.00027671,2]
[426023982,1782119483000,-500.0,0.00027671,2]
[426023975,1782119483000,-580.4151984,0.00027671,2]
[426023984,1782119483000,-254.89374402,0.00027671,2]
[426023985,1782119483000,-500.0,0.00027671,2]
[426023996,1782119483000,-592.34,0.00027671,2]
[426023998,1782119483000,-500.0,0.00027671,2]
[426023992,1782119483000,-500.0,0.00027671,2]
[426023991,1782119483000,-500.0,0.00027671,2]
[426023997,1782119483000,-500.0,0.00027671,2]
[426023990,1782119483000,-500.0,0.00027671,2]
[426023986,1782119483000,-500.0,0.00027671,2]
[426023987,1782119483000,-500.0,0.00027671,2]
[426023983,1782119483000,-500.0,0.00027671,2]
[426023989,1782119483000,-230.21,0.00027671,2]
[426023994,1782119483000,-519.13572651,0.00027671,2]
[426024052,1782119484000,-500.0,0.00027671,2]
[426024060,1782119484000,-500.0,0.00027671,2]
[426024053,1782119484000,-500.0,0.00027671,2]
[426024058,1782119484000,-500.0,0.00027671,2]
[426024056,1782119484000,-916.73,0.00027671,2]
[426024057,1782119484000,-500.0,0.00027671,2]
[426024054,1782119484000,-500.0,0.00027671,2]
[426024055,1782119484000,-510.40279967,0.00027671,2]
[426024059,1782119484000,-500.0,0.00027671,2]
[426024069,1782119484000,-500.0,0.00027671,2]
[426024063,1782119484000,-500.0,0.00027671,2]
[426024062,1782119484000,-500.0,0.00027671,2]
[426024064,1782119484000,-500.0,0.00027671,2]
[426024068,1782119484000,-1001.58,0.00027671,2]
[426024066,1782119484000,-500.0,0.00027671,2]
[426024070,1782119484000,-500.0,0.00027671,2]
[426024067,1782119484000,-745.56,0.00027671,2]
[426024065,1782119484000,-544.39490168,0.00027671,2]
[426024072,1782119484000,-554.57,0.00027671,2]
[426024050,1782119484000,-676.49,0.00027671,2]
[426024061,1782119484000,-500.0,0.00027671,2]
[426024051,1782119484000,-500.0,0.00027671,2]
[426024033,1782119484000,-509.2841979,0.00027671,2]
[426024049,1782119484000,-500.0,0.00027671,2]
[426024027,1782119484000,-500.0,0.00027671,2]
[426024026,1782119484000,-500.0,0.00027671,2]
[426024029,1782119484000,-500.0,0.00027671,2]
[426024030,1782119484000,-500.0,0.00027671,2]
[426024028,1782119484000,-500.0,0.00027671,2]
[426024031,1782119484000,-500.0,0.00027671,2]
[426024032,1782119484000,-542.93,0.00027671,2]
[426024034,1782119484000,-500.0,0.00027671,2]
[426024036,1782119484000,-739.86,0.00027671,2]
[426024035,1782119484000,-951.64,0.00027671,2]
[426024037,1782119484000,-670.29,0.00027671,2]
[426024047,1782119484000,-531.33783322,0.00027671,2]
[426024046,1782119484000,-441.32692376,0.00027671,2]
[426024038,1782119484000,-500.0,0.00027671,2]
[426024039,1782119484000,-500.0,0.00027671,2]
[426024041,1782119484000,-496.19238715,0.00027671,2]
[426024044,1782119484000,-500.0,0.00027671,2]
[426024042,1782119484000,-500.0,0.00027671,2]
[426024040,1782119484000,-1224.66,0.00027671,2]
[426024045,1782119484000,-500.0,0.00027671,2]
[426024043,1782119484000,-190.11605407,0.00027671,2]
[426024048,1782119484000,-500.0,0.00027671,2]
[426024071,1782119484000,-500.0,0.00027671,2]
[426024073,1782119484000,-748.95,0.00027671,2]
[426024076,1782119484000,-500.0,0.00027671,2]
[426024103,1782119484000,-1000.0,0.00027671,2]
[426024098,1782119484000,-1000.0,0.00027671,2]
[426024099,1782119484000,-500.0,0.00027671,2]
[426024115,1782119484000,-1000.0,0.00027671,2]
[426024105,1782119484000,-1000.0,0.00027671,2]
[426024104,1782119484000,-1000.0,0.00027671,2]
[426024106,1782119484000,-500.0,0.00027671,2]
[426024107,1782119484000,-1000.0,0.00027671,2]
[426024110,1782119484000,-1000.0,0.00027671,2]
[426024113,1782119484000,-500.0,0.00027671,2]
[426024114,1782119484000,-1000.0,0.00027671,2]
[426024111,1782119484000,-643.36,0.00027671,2]
[426024108,1782119484000,-158.03892885,0.00027671,2]
[426024112,1782119484000,-1000.0,0.00027671,2]
[426024116,1782119484000,-500.0,0.00027671,2]
[426024117,1782119484000,-1000.0,0.00027671,2]
[426024120,1782119484000,-500.0,0.00027671,2]
[426024118,1782119484000,-500.0,0.00027671,2]
[426024121,1782119484000,-1018.74287539,0.00027671,2]
[426024119,1782119484000,-1000.0,0.00027671,2]
[426024074,1782119484000,-1335.55,0.00027671,2]
[426024101,1782119484000,-542.8,0.00027671,2]
[426024102,1782119484000,-1000.0,0.00027671,2]
[426024109,1782119484000,-500.0,0.00027671,2]
[426024097,1782119484000,-1000.0,0.00027671,2]
[426024078,1782119484000,-536.27768797,0.00027671,2]
[426024096,1782119484000,-500.0,0.00027671,2]
[426024079,1782119484000,-1000.0,0.00027671,2]
[426024075,1782119484000,-500.0,0.00027671,2]
[426024081,1782119484000,-512.25212712,0.00027671,2]
[426024077,1782119484000,-500.0,0.00027671,2]
[426024084,1782119484000,-1000.0,0.00027671,2]
[426024082,1782119484000,-1000.0,0.00027671,2]
[426024093,1782119484000,-500.0,0.00027671,2]
[426024087,1782119484000,-1000.0,0.00027671,2]
[426024080,1782119484000,-500.0,0.00027671,2]
[426024086,1782119484000,-500.0,0.00027671,2]
[426024092,1782119484000,-1000.0,0.00027671,2]
[426024090,1782119484000,-1000.0,0.00027671,2]
[426024088,1782119484000,-1000.0,0.00027671,2]
[426024083,1782119484000,-1000.0,0.00027671,2]
[426024089,1782119484000,-1000.0,0.00027671,2]
[426024085,1782119484000,-500.0,0.00027671,2]
[426024100,1782119484000,-782.92,0.00027671,2]
[426024095,1782119484000,-1000.0,0.00027671,2]
[426024094,1782119484000,-1000.0,0.00027671,2]
[426024091,1782119484000,-500.0,0.00027671,2]
[426024151,1782119485000,-500.0,0.00027671,2]
[426024153,1782119485000,-622.55526934,0.00027671,2]
[426024161,1782119485000,-500.0,0.00027671,2]
[426024163,1782119485000,-504.1778314,0.00027671,2]
[426024160,1782119485000,-539.1,0.00027671,2]
[426024159,1782119485000,-500.0,0.00027671,2]
[426024155,1782119485000,-880.48,0.00027671,2]
[426024157,1782119485000,-500.0,0.00027671,2]
[426024158,1782119485000,-534.9,0.00027671,2]
[426024154,1782119485000,-500.0,0.00027671,2]
[426024165,1782119485000,-500.0,0.00027671,2]
[426024156,1782119485000,-500.0,0.00027671,2]
[426024167,1782119485000,-500.0,0.00027671,2]
[426024176,1782119485000,-428.73252354,0.00027671,2]
[426024169,1782119485000,-500.0,0.00027671,2]
[426024166,1782119485000,-500.0,0.00027671,2]
[426024171,1782119485000,-500.0,0.00027671,2]
[426024172,1782119485000,-500.0,0.00027671,2]
[426024170,1782119485000,-500.0,0.00027671,2]
[426024174,1782119485000,-460.43782085,0.00027671,2]
[426024164,1782119485000,-500.0,0.00027671,2]
[426024173,1782119485000,-500.0,0.00027671,2]
[426024186,1782119485000,-660.72,0.00027671,2]
[426024175,1782119485000,-177.40189434,0.00027671,2]
[426024177,1782119485000,-607.9,0.00027671,2]
[426024152,1782119485000,-500.0,0.00027671,2]
[426024168,1782119485000,-500.0,0.00027671,2]
[426024162,1782119485000,-500.0,0.00027671,2]
[426024126,1782119485000,-228.61,0.00027671,2]
[426024150,1782119485000,-500.0,0.00027671,2]
[426024183,1782119485000,-500.0,0.00027671,2]
[426024124,1782119485000,-503.22028052,0.00027671,2]
[426024127,1782119485000,-500.0,0.00027671,2]
[426024122,1782119485000,-572.24274904,0.00027671,2]
[426024123,1782119485000,-500.0,0.00027671,2]
[426024128,1782119485000,-795.59,0.00027671,2]
[426024129,1782119485000,-656.6,0.00027671,2]
[426024130,1782119485000,-834.63,0.00027671,2]
[426024135,1782119485000,-500.0,0.00027671,2]
[426024133,1782119485000,-500.0,0.00027671,2]
[426024131,1782119485000,-500.0,0.00027671,2]
[426024132,1782119485000,-500.0,0.00027671,2]
[426024149,1782119485000,-500.0,0.00027671,2]
[426024134,1782119485000,-500.0,0.00027671,2]
[426024136,1782119485000,-823.84,0.00027671,2]
[426024139,1782119485000,-525.28579103,0.00027671,2]
[426024137,1782119485000,-500.0,0.00027671,2]
[426024140,1782119485000,-500.0,0.00027671,2]
[426024142,1782119485000,-500.0,0.00027671,2]
[426024146,1782119485000,-873.0,0.00027671,2]
[426024147,1782119485000,-536.43868075,0.00027671,2]
[426024143,1782119485000,-500.0,0.00027671,2]
[426024148,1782119485000,-631.74722358,0.00027671,2]
[426024144,1782119485000,-500.0,0.00027671,2]
[426024141,1782119485000,-500.0,0.00027671,2]
[426024145,1782119485000,-500.0,0.00027671,2]
[426024138,1782119485000,-500.0,0.00027671,2]
[426024184,1782119485000,-814.96,0.00027671,2]
[426024125,1782119485000,-500.0,0.00027671,2]
[426024182,1782119485000,-500.0,0.00027671,2]
[426024214,1782119485000,-500.0,0.00027671,2]
[426024213,1782119485000,-502.05452612,0.00027671,2]
[426024217,1782119485000,-500.0,0.00027671,2]
[426024222,1782119485000,-500.0,0.00027671,2]
[426024219,1782119485000,-500.0,0.00027671,2]
[426024224,1782119485000,-978.97,0.00027671,2]
[426024216,1782119485000,-1327.43,0.00027671,2]
[426024220,1782119485000,-507.76037573,0.00027671,2]
[426024223,1782119485000,-1047.27,0.00027671,2]
[426024218,1782119485000,-500.0,0.00027671,2]
[426024221,1782119485000,-500.0,0.00027671,2]
[426024226,1782119485000,-500.0,0.00027671,2]
[426024225,1782119485000,-500.0,0.00027671,2]
[426024234,1782119485000,-503.45932359,0.00027671,2]
[426024227,1782119485000,-524.57284791,0.00027671,2]
[426024236,1782119485000,-772.7,0.00027671,2]
[426024228,1782119485000,-680.19,0.00027671,2]
[426024229,1782119485000,-629.19,0.00027671,2]
[426024235,1782119485000,-3541.58,0.00027671,2]
[426024231,1782119485000,-500.0,0.00027671,2]
[426024230,1782119485000,-500.0,0.00027671,2]
[426024233,1782119485000,-500.0,0.00027671,2]
[426024240,1782119485000,-500.0,0.00027671,2]
[426024232,1782119485000,-500.0,0.00027671,2]
[426024239,1782119485000,-1477.52,0.00027671,2]
[426024238,1782119485000,-807.41,0.00027671,2]
[426024178,1782119485000,-500.0,0.00027671,2]
[426024215,1782119485000,-1214.24,0.00027671,2]
[426024212,1782119485000,-500.0,0.00027671,2]
[426024237,1782119485000,-500.0,0.00027671,2]
[426024210,1782119485000,-500.0,0.00027671,2]
[426024209,1782119485000,-164.59311645,0.00027671,2]
[426024179,1782119485000,-500.0,0.00027671,2]
[426024181,1782119485000,-500.0,0.00027671,2]
[426024185,1782119485000,-503.09665556,0.00027671,2]
[426024187,1782119485000,-500.0,0.00027671,2]
[426024191,1782119485000,-500.0,0.00027671,2]
[426024189,1782119485000,-977.47,0.00027671,2]
[426024188,1782119485000,-500.0,0.00027671,2]
[426024193,1782119485000,-500.0,0.00027671,2]
[426024190,1782119485000,-500.0,0.00027671,2]
[426024198,1782119485000,-923.44,0.00027671,2]
[426024199,1782119485000,-500.0,0.00027671,2]
[426024195,1782119485000,-500.0,0.00027671,2]
[426024180,1782119485000,-621.2,0.00027671,2]
[426024197,1782119485000,-506.71,0.00027671,2]
[426024192,1782119485000,-1389.52,0.00027671,2]
[426024205,1782119485000,-3901.79,0.00027671,2]
[426024208,1782119485000,-582.93,0.00027671,2]
[426024207,1782119485000,-698.68,0.00027671,2]
[426024203,1782119485000,-500.0,0.00027671,2]
[426024206,1782119485000,-500.0,0.00027671,2]
[426024204,1782119485000,-500.0,0.00027671,2]
[426024200,1782119485000,-670.71,0.00027671,2]
[426024201,1782119485000,-500.0,0.00027671,2]
[426024211,1782119485000,-500.0,0.00027671,2]
[426024194,1782119485000,-500.0,0.00027671,2]
[426024196,1782119485000,-1051.83,0.00027671,2]
[426024202,1782119485000,-500.0,0.00027671,2]
[426024277,1782119486000,-531.92381387,0.00027671,2]
[426024278,1782119486000,-806.18,0.00027671,2]
[426024281,1782119486000,-500.0,0.00027671,2]
[426024272,1782119486000,-500.0,0.00027671,2]
[426024274,1782119486000,-500.0,0.00027671,2]
[426024271,1782119486000,-894.46,0.00027671,2]
[426024273,1782119486000,-500.0,0.00027671,2]
[426024279,1782119486000,-500.0,0.00027671,2]
[426024266,1782119486000,-500.0,0.00027671,2]
[426024275,1782119486000,-582.63,0.00027671,2]
[426024268,1782119486000,-529.50976511,0.00027671,2]
[426024288,1782119486000,-500.0,0.00027671,2]
[426024280,1782119486000,-509.94977617,0.00027671,2]
[426024282,1782119486000,-500.0,0.00027671,2]
[426024283,1782119486000,-1524.68,0.00027671,2]
[426024291,1782119486000,-500.0,0.00027671,2]
[426024286,1782119486000,-1515.43,0.00027671,2]
[426024289,1782119486000,-521.02522188,0.00027671,2]
[426024287,1782119486000,-500.0,0.00027671,2]
[426024284,1782119486000,-500.0,0.00027671,2]
[426024285,1782119486000,-4836.67,0.00027671,2]
[426024290,1782119486000,-1305.26,0.00027671,2]
[426024270,1782119486000,-518.92,0.00027671,2]
[426024292,1782119486000,-702.57,0.00027671,2]
[426024276,1782119486000,-500.0,0.00027671,2]
[426024267,1782119486000,-500.0,0.00027671,2]
[426024248,1782119486000,-500.0,0.00027671,2]
[426024269,1782119486000,-500.0,0.00027671,2]
[426024293,1782119486000,-500.0,0.00027671,2]
[426024241,1782119486000,-500.0,0.00027671,2]
[426024243,1782119486000,-1029.91,0.00027671,2]
[426024242,1782119486000,-500.0,0.00027671,2]
[426024245,1782119486000,-500.0,0.00027671,2]
[426024244,1782119486000,-505.67871633,0.00027671,2]
[426024247,1782119486000,-500.0,0.00027671,2]
[426024246,1782119486000,-500.0,0.00027671,2]
[426024249,1782119486000,-500.0,0.00027671,2]
[426024259,1782119486000,-500.0,0.00027671,2]
[426024252,1782119486000,-500.0,0.00027671,2]
[426024264,1782119486000,-500.0,0.00027671,2]
[426024250,1782119486000,-500.0,0.00027671,2]
[426024254,1782119486000,-500.0,0.00027671,2]
[426024253,1782119486000,-7269.9,0.00027671,2]
[426024256,1782119486000,-500.0,0.00027671,2]
[426024257,1782119486000,-205.30818754,0.00027671,2]
[426024255,1782119486000,-500.0,0.00027671,2]
[426024258,1782119486000,-551.69,0.00027671,2]
[426024260,1782119486000,-500.0,0.00027671,2]
[426024261,1782119486000,-505.13729943,0.00027671,2]
[426024262,1782119486000,-500.0,0.00027671,2]
[426024263,1782119486000,-500.0,0.00027671,2]
[426024265,1782119486000,-814.11,0.00027671,2]
[426024251,1782119486000,-500.0,0.00027671,2]
[426024295,1782119486000,-500.0,0.00027671,2]
[426024302,1782119486000,-500.0,0.00027671,2]
[426024296,1782119486000,-532.44,0.00027671,2]
[426024326,1782119486000,-500.0,0.00027671,2]
[426024327,1782119486000,-11954.4,0.00027671,2]
[426024325,1782119486000,-500.0,0.00027671,2]
[426024334,1782119486000,-2134.45,0.00027671,2]
[426024330,1782119486000,-500.0,0.00027671,2]
[426024329,1782119486000,-500.0,0.00027671,2]
[426024331,1782119486000,-605.31918057,0.00027671,2]
[426024332,1782119486000,-500.0,0.00027671,2]
[426024333,1782119486000,-589.47,0.00027671,2]
[426024336,1782119486000,-500.0,0.00027671,2]
[426024346,1782119486000,-500.0,0.00027671,2]
[426024338,1782119486000,-563.24,0.00027671,2]
[426024335,1782119486000,-505.11536823,0.00027671,2]
[426024337,1782119486000,-500.0,0.00027671,2]
[426024339,1782119486000,-763.17,0.00027671,2]
[426024344,1782119486000,-500.0,0.00027671,2]
[426024341,1782119486000,-502.04286014,0.00027671,2]
[426024345,1782119486000,-635.3218375,0.00027671,2]
[426024343,1782119486000,-500.0,0.00027671,2]
[426024340,1782119486000,-5008.57,0.00027671,2]
[426024342,1782119486000,-384.56645236,0.00027671,2]
[426024294,1782119486000,-500.0,0.00027671,2]
[426024348,1782119486000,-500.0,0.00027671,2]
[426024349,1782119486000,-931.05,0.00027671,2]
[426024350,1782119486000,-849.65,0.00027671,2]
[426024328,1782119486000,-500.0,0.00027671,2]
[426024324,1782119486000,-683.61,0.00027671,2]
[426024347,1782119486000,-500.0,0.00027671,2]
[426024320,1782119486000,-500.0,0.00027671,2]
[426024323,1782119486000,-500.0,0.00027671,2]
[426024297,1782119486000,-787.4,0.00027671,2]
[426024299,1782119486000,-500.0,0.00027671,2]
[426024303,1782119486000,-500.0,0.00027671,2]
[426024301,1782119486000,-500.0,0.00027671,2]
[426024300,1782119486000,-500.0,0.00027671,2]
[426024304,1782119486000,-500.0,0.00027671,2]
[426024305,1782119486000,-500.0,0.00027671,2]
[426024311,1782119486000,-500.0,0.00027671,2]
[426024307,1782119486000,-739.36,0.00027671,2]
[426024306,1782119486000,-2000.0,0.00027671,2]
[426024309,1782119486000,-500.0,0.00027671,2]
[426024298,1782119486000,-500.0,0.00027671,2]
[426024310,1782119486000,-559.15257737,0.00027671,2]
[426024312,1782119486000,-926.72,0.00027671,2]
[426024314,1782119486000,-1036.4,0.00027671,2]
[426024313,1782119486000,-8333.7,0.00027671,2]
[426024315,1782119486000,-885.95,0.00027671,2]
[426024321,1782119486000,-500.0,0.00027671,2]
[426024316,1782119486000,-500.0,0.00027671,2]
[426024317,1782119486000,-1487.43,0.00027671,2]
[426024318,1782119486000,-399.09929024,0.00027671,2]
[426024322,1782119486000,-519.81550516,0.00027671,2]
[426024319,1782119486000,-3619.69,0.00027671,2]
[426024308,1782119486000,-699.81,0.00027671,2]
[426024393,1782119487000,-500.66055766,0.00027671,2]
[426024391,1782119487000,-500.0,0.00027671,2]
[426024383,1782119487000,-212.41042765,0.00027671,2]
[426024377,1782119487000,-1476.94,0.00027671,2]
[426024382,1782119487000,-500.0,0.00027671,2]
[426024380,1782119487000,-6210.96,0.00027671,2]
[426024381,1782119487000,-500.0,0.00027671,2]
[426024378,1782119487000,-500.0,0.00027671,2]
[426024379,1782119487000,-500.0,0.00027671,2]
[426024392,1782119487000,-500.0,0.00027671,2]
[426024385,1782119487000,-695.9,0.00027671,2]
[426024386,1782119487000,-500.0,0.00027671,2]
[426024384,1782119487000,-623.85976287,0.00027671,2]
[426024388,1782119487000,-500.0,0.00027671,2]
[426024390,1782119487000,-505.0005912,0.00027671,2]
[426024389,1782119487000,-500.0,0.00027671,2]
[426024395,1782119487000,-500.0,0.00027671,2]
[426024405,1782119487000,-547.27048277,0.00027671,2]
[426024394,1782119487000,-3112.0,0.00027671,2]
[426024374,1782119487000,-500.0,0.00027671,2]
[426024396,1782119487000,-563.50834464,0.00027671,2]
[426024387,1782119487000,-562.90574308,0.00027671,2]
[426024376,1782119487000,-500.0,0.00027671,2]
[426024362,1782119487000,-500.0,0.00027671,2]
[426024373,1782119487000,-500.0,0.00027671,2]
[426024400,1782119487000,-500.0,0.00027671,2]
[426024352,1782119487000,-500.0,0.00027671,2]
[426024353,1782119487000,-500.0,0.00027671,2]
[426024351,1782119487000,-500.0,0.00027671,2]
[426024355,1782119487000,-500.0,0.00027671,2]
[426024354,1782119487000,-174.45954741,0.00027671,2]
[426024357,1782119487000,-500.0,0.00027671,2]
[426024356,1782119487000,-500.0,0.00027671,2]
[426024358,1782119487000,-500.0,0.00027671,2]
[426024359,1782119487000,-500.0,0.00027671,2]
[426024375,1782119487000,-628.49,0.00027671,2]
[426024360,1782119487000,-7294.75,0.00027671,2]
[426024361,1782119487000,-500.0,0.00027671,2]
[426024367,1782119487000,-500.0,0.00027671,2]
[426024363,1782119487000,-500.0,0.00027671,2]
[426024366,1782119487000,-4947.53,0.00027671,2]
[426024369,1782119487000,-510.53414846,0.00027671,2]
[426024364,1782119487000,-500.0,0.00027671,2]
[426024371,1782119487000,-500.0,0.00027671,2]
[426024368,1782119487000,-623.15,0.00027671,2]
[426024370,1782119487000,-500.0,0.00027671,2]
[426024372,1782119487000,-500.0,0.00027671,2]
[426024365,1782119487000,-569.65,0.00027671,2]
[426024397,1782119487000,-500.0,0.00027671,2]
[426024399,1782119487000,-524.5753931,0.00027671,2]
[426024402,1782119487000,-500.0,0.00027671,2]
[426024439,1782119487000,-500.0,0.00027671,2]
[426024429,1782119487000,-500.0,0.00027671,2]
[426024430,1782119487000,-500.0,0.00027671,2]
[426024440,1782119487000,-500.0,0.00027671,2]
[426024432,1782119487000,-609.69970659,0.00027671,2]
[426024428,1782119487000,-500.0,0.00027671,2]
[426024431,1782119487000,-500.0,0.00027671,2]
[426024433,1782119487000,-500.0,0.00027671,2]
[426024438,1782119487000,-500.0,0.00027671,2]
[426024437,1782119487000,-500.0,0.00027671,2]
[426024425,1782119487000,-528.36111988,0.00027671,2]
[426024434,1782119487000,-500.0,0.00027671,2]
[426024442,1782119487000,-500.0,0.00027671,2]
[426024444,1782119487000,-500.0,0.00027671,2]
[426024448,1782119487000,-500.0,0.00027671,2]
[426024441,1782119487000,-500.0,0.00027671,2]
[426024449,1782119487000,-500.0,0.00027671,2]
[426024446,1782119487000,-500.0,0.00027671,2]
[426024443,1782119487000,-4838.88,0.00027671,2]
[426024445,1782119487000,-500.0,0.00027671,2]
[426024447,1782119487000,-570.2722662,0.00027671,2]
[426024398,1782119487000,-500.0,0.00027671,2]
[426024436,1782119487000,-500.0,0.00027671,2]
[426024426,1782119487000,-500.0,0.00027671,2]
[426024435,1782119487000,-729.11,0.00027671,2]
[426024424,1782119487000,-636.72,0.00027671,2]
[426024422,1782119487000,-331.93378562,0.00027671,2]
[426024450,1782119487000,-4048.28,0.00027671,2]
[426024404,1782119487000,-1345.02,0.00027671,2]
[426024401,1782119487000,-550.05716566,0.00027671,2]
[426024403,1782119487000,-500.0,0.00027671,2]
[426024406,1782119487000,-563.68947701,0.00027671,2]
[426024408,1782119487000,-252.40667958,0.00027671,2]
[426024409,1782119487000,-500.0,0.00027671,2]
[426024412,1782119487000,-5765.88,0.00027671,2]
[426024413,1782119487000,-500.0,0.00027671,2]
[426024414,1782119487000,-500.0,0.00027671,2]
[426024411,1782119487000,-500.0,0.00027671,2]
[426024419,1782119487000,-500.0,0.00027671,2]
[426024410,1782119487000,-500.0,0.00027671,2]
[426024415,1782119487000,-500.0,0.00027671,2]
[426024417,1782119487000,-500.0,0.00027671,2]
[426024418,1782119487000,-500.0,0.00027671,2]
[426024416,1782119487000,-500.0,0.00027671,2]
[426024427,1782119487000,-500.0,0.00027671,2]
[426024421,1782119487000,-500.0,0.00027671,2]
[426024423,1782119487000,-500.0,0.00027671,2]
[426024407,1782119487000,-1419.64,0.00027671,2]
[426024420,1782119487000,-500.0,0.00027671,2]
[426024486,1782119488000,-4874.94,0.00027671,2]
[426024484,1782119488000,-500.0,0.00027671,2]
[426024481,1782119488000,-500.0,0.00027671,2]
[426024487,1782119488000,-500.0,0.00027671,2]
[426024480,1782119488000,-5236.5,0.00027671,2]
[426024483,1782119488000,-4216.49,0.00027671,2]
[426024490,1782119488000,-265.66839161,0.00027671,2]
[426024488,1782119488000,-8237.49,0.00027671,2]
[426024482,1782119488000,-5391.54,0.00027671,2]
[426024489,1782119488000,-500.0,0.00027671,2]
[426024485,1782119488000,-500.0,0.00027671,2]
[426024500,1782119488000,-463.67970364,0.00027671,2]
[426024491,1782119488000,-500.0,0.00027671,2]
[426024493,1782119488000,-500.0,0.00027671,2]
[426024498,1782119488000,-747.71,0.00027671,2]
[426024497,1782119488000,-500.0,0.00027671,2]
[426024494,1782119488000,-500.0,0.00027671,2]
[426024492,1782119488000,-563.60315907,0.00027671,2]
[426024496,1782119488000,-549.36084992,0.00027671,2]
[426024495,1782119488000,-1020.09,0.00027671,2]
[426024499,1782119488000,-500.0,0.00027671,2]
[426024501,1782119488000,-412.19,0.00027671,2]
[426024479,1782119488000,-500.0,0.00027671,2]
[426024502,1782119488000,-1119.42,0.00027671,2]
[426024478,1782119488000,-500.0,0.00027671,2]
[426024452,1782119488000,-500.0,0.00027671,2]
[426024475,1782119488000,-4736.1,0.00027671,2]
[426024451,1782119488000,-500.0,0.00027671,2]
[426024453,1782119488000,-500.0,0.00027671,2]
[426024505,1782119488000,-500.0,0.00027671,2]
[426024455,1782119488000,-500.0,0.00027671,2]
[426024456,1782119488000,-500.0,0.00027671,2]
[426024461,1782119488000,-8420.27,0.00027671,2]
[426024462,1782119488000,-396.91738352,0.00027671,2]
[426024463,1782119488000,-500.0,0.00027671,2]
[426024460,1782119488000,-503.27682218,0.00027671,2]
[426024465,1782119488000,-321.81809441,0.00027671,2]
[426024458,1782119488000,-500.0,0.00027671,2]
[426024454,1782119488000,-1021.59,0.00027671,2]
[426024459,1782119488000,-528.92657382,0.00027671,2]
[426024457,1782119488000,-500.0,0.00027671,2]
[426024464,1782119488000,-2905.47,0.00027671,2]
[426024467,1782119488000,-500.0,0.00027671,2]
[426024477,1782119488000,-502.62422328,0.00027671,2]
[426024466,1782119488000,-500.0,0.00027671,2]
[426024468,1782119488000,-924.56,0.00027671,2]
[426024471,1782119488000,-500.0,0.00027671,2]
[426024474,1782119488000,-500.0,0.00027671,2]
[426024469,1782119488000,-513.19957279,0.00027671,2]
[426024472,1782119488000,-7830.66,0.00027671,2]
[426024473,1782119488000,-500.0,0.00027671,2]
[426024470,1782119488000,-500.0,0.00027671,2]
[426024476,1782119488000,-500.0,0.00027671,2]
[426024506,1782119488000,-505.80170491,0.00027671,2]
[426024503,1782119488000,-500.0,0.00027671,2]
[426024504,1782119488000,-1083.39,0.00027671,2]